Workbook

Sheet Sheet1
C1: FCC Form 481 OMB Control No. 3060-0986
A2: Template for Reporting Community Anchor Institutions (Lines 2018, 3012B, and 4003B)
A4: Number | B4: Name | C4: Street Address | D4: State | E4: Zip | F4: Len B & C
A5: 1 | F5: =LEN(B5)+LEN(C5) -> 0
A6: =A5+1 -> 2 | F6: =LEN(B6)+LEN(C6) -> 0
A7: =A6+1 -> 3 | F7: 0
A8: 4 | F8: 0
A9: 5 | F9: 0
A10: 6 | F10: 0
A11: 7 | F11: 0
A12: 8 | F12: 0
A13: 9 | F13: 0
A14: 10 | F14: 0
A15: 11 | F15: 0
A16: 12 | F16: 0
A17: 13 | F17: 0
A18: 14 | F18: 0
A19: 15 | F19: 0
A20: 16 | F20: 0
A21: 17 | F21: 0
A22: 18 | F22: 0
A23: 19 | F23: 0
A24: 20 | F24: 0
A25: 21 | F25: 0
A26: 22 | F26: 0
A27: 23 | F27: 0
A28: 24 | F28: 0
A29: 25 | F29: 0
A30: 26 | F30: 0
A31: 27 | F31: 0
A32: 28 | F32: 0
A33: 29 | F33: 0
A34: 30 | F34: 0
A35: 31 | F35: 0
A36: 32 | F36: 0
A37: 33 | F37: 0
A38: 34 | F38: 0
A39: 35 | F39: 0
A40: 36 | F40: 0
A41: 37 | F41: 0
A42: 38 | F42: 0
A43: 39 | F43: 0
A44: 40 | F44: 0
A45: 41 | F45: 0
A46: 42 | F46: 0
A47: 43 | F47: 0
A48: 44 | F48: 0
A49: 45 | F49: 0
A50: 46 | F50: 0
A51: 47 | F51: 0
A52: 48 | F52: 0
A53: 49 | F53: 0
A54: 50 | F54: 0
A55: 51 | F55: 0
A56: 52 | F56: 0
A57: 53 | F57: 0
A58: 54 | F58: 0
A59: 55 | F59: 0
A60: 56 | F60: 0
A61: 57 | F61: 0
A62: 58 | F62: 0
A63: 59 | F63: 0
A64: 60 | F64: 0
A65: 61 | F65: 0
A66: 62 | F66: 0
A67: 63 | F67: 0
A68: 64 | F68: 0
A69: 65 | F69: 0
A70: 66 | F70: =LEN(B70)+LEN(C70) -> 0
A71: =A70+1 -> 67 | F71: 0
A72: 68 | F72: 0
A73: 69 | F73: 0
A74: 70 | F74: 0
A75: 71 | F75: 0
A76: 72 | F76: 0
A77: 73 | F77: 0
A78: 74 | F78: 0
A79: 75 | F79: 0
A80: 76 | F80: 0
A81: 77 | F81: 0
A82: 78 | F82: 0
A83: 79 | F83: 0
A84: 80 | F84: 0
A85: 81 | F85: 0
A86: 82 | F86: 0
A87: 83 | F87: 0
A88: 84 | F88: 0
A89: 85 | F89: 0
A90: 86 | F90: 0
A91: 87 | F91: 0
A92: 88 | F92: 0
A93: 89 | F93: 0
A94: 90 | F94: 0
A95: 91 | F95: 0
A96: 92 | F96: 0
A97: 93 | F97: 0
A98: 94 | F98: 0
A99: 95 | F99: 0
A100: 96 | F100: 0
A101: 97 | F101: 0
A102: 98 | F102: 0
A103: 99 | F103: 0
A104: 100 | F104: 0
A105: 101 | F105: 0
A106: 102 | F106: 0
A107: 103 | F107: 0
A108: 104 | F108: 0
A109: 105 | F109: 0
A110: 106 | F110: 0
A111: 107 | F111: 0
A112: 108 | F112: 0
A113: 109 | F113: 0
A114: 110 | F114: 0
A115: 111 | F115: 0
A116: 112 | F116: 0
A117: 113 | F117: 0
A118: 114 | F118: 0
A119: 115 | F119: 0
A120: 116 | F120: 0
A121: 117 | F121: 0
A122: 118 | F122: 0
A123: 119 | F123: 0
A124: 120 | F124: 0
A125: 121 | F125: 0
A126: 122 | F126: 0
A127: 123 | F127: 0
A128: 124 | F128: 0
A129: 125 | F129: 0
A130: 126 | F130: 0
A131: 127 | F131: 0
A132: 128 | F132: 0
A133: 129 | F133: 0
A134: 130 | F134: =LEN(B134)+LEN(C134) -> 0
A135: =A134+1 -> 131 | F135: 0
A136: 132 | F136: 0
A137: 133 | F137: 0
A138: 134 | F138: 0
A139: 135 | F139: 0
A140: 136 | F140: 0
A141: 137 | F141: 0
A142: 138 | F142: 0
A143: 139 | F143: 0
A144: 140 | F144: 0
A145: 141 | F145: 0
A146: 142 | F146: 0
A147: 143 | F147: 0
A148: 144 | F148: 0
A149: 145 | F149: 0
A150: 146 | F150: 0
A151: 147 | F151: 0
A152: 148 | F152: 0
A153: 149 | F153: 0
A154: 150 | F154: 0
A155: 151 | F155: 0
A156: 152 | F156: 0
A157: 153 | F157: 0
A158: 154 | F158: 0
A159: 155 | F159: 0
A160: 156 | F160: 0
A161: 157 | F161: 0
A162: 158 | F162: 0
A163: 159 | F163: 0
A164: 160 | F164: 0
A165: 161 | F165: 0
A166: 162 | F166: 0
A167: 163 | F167: 0
A168: 164 | F168: 0
A169: 165 | F169: 0
A170: 166 | F170: 0
A171: 167 | F171: 0
A172: 168 | F172: 0
A173: 169 | F173: 0
A174: 170 | F174: 0
A175: 171 | F175: 0
A176: 172 | F176: 0
A177: 173 | F177: 0
A178: 174 | F178: 0
A179: 175 | F179: 0
A180: 176 | F180: 0
A181: 177 | F181: 0
A182: 178 | F182: 0
A183: 179 | F183: 0
A184: 180 | F184: 0
A185: 181 | F185: 0
A186: 182 | F186: 0
A187: 183 | F187: 0
A188: 184 | F188: 0
A189: 185 | F189: 0
A190: 186 | F190: 0
A191: 187 | F191: 0
A192: 188 | F192: 0
A193: 189 | F193: 0
A194: 190 | F194: 0
A195: 191 | F195: 0
A196: 192 | F196: 0
A197: 193 | F197: 0
A198: 194 | F198: =LEN(B198)+LEN(C198) -> 0
A199: =A198+1 -> 195 | F199: 0
A200: 196 | F200: 0
A201: 197 | F201: 0
... 804 more rows
